lending/lending_fUSD_20250425
["ID","MTS","AMOUNT","RATE_DAILY","PERIOD"]
[358983492,1745603446814,-500.0,0.00030136,2]
[358983493,1745603446829,-500.0,0.00030136,2]
[358983494,1745603446845,-500.0,0.00030136,2]
[358983495,1745603446860,-500.0,0.00030136,2]
[358983496,1745603446876,-500.0,0.00030136,2]
[358983497,1745603446889,-500.0,0.00030136,2]
[358983498,1745603446904,-500.0,0.00030136,2]
[358983499,1745603446918,-500.0,0.00030136,2]
[358983500,1745603446937,-537.85,0.00030136,2]
[358983501,1745603446953,-549.94582558,0.00030136,2]
[358983502,1745603446967,-500.0,0.00030136,2]
[358983503,1745603446983,-500.0,0.00030136,2]
[358983504,1745603446998,-500.0,0.00030136,2]
[358983505,1745603447013,-500.0,0.00030136,2]
[358983506,1745603447027,-303.2467606,0.00030136,2]
[358983507,1745603447041,-500.0,0.00030136,2]
[358983508,1745603447056,-823.34,0.00030136,2]
[358983509,1745603447070,-500.0,0.00030136,2]
[358983510,1745603447084,-1021.89,0.00030136,2]
[358983511,1745603447099,-500.0,0.00030136,2]
[358983512,1745603447114,-500.0,0.00030136,2]
[358983513,1745603447129,-500.0,0.00030136,2]
[358983514,1745603447143,-500.0,0.00030136,2]
[358983515,1745603447157,-500.0,0.00030136,2]
[358983516,1745603447171,-500.0,0.00030136,2]
[358983517,1745603447185,-500.0,0.00030136,2]
[358983518,1745603447201,-500.0,0.00030136,2]
[358983519,1745603447215,-500.0,0.00030136,2]
[358983520,1745603447230,-500.0,0.00030136,2]
[358983521,1745603447244,-500.0,0.00030136,2]
[358983522,1745603447257,-500.0,0.00030136,2]
[358983523,1745603447271,-500.0,0.00030136,2]
[358983524,1745603447285,-500.0,0.00030136,2]
[358983525,1745603447299,-500.0,0.00030136,2]
[358983526,1745603447314,-736.14,0.00030136,2]
[358983527,1745603447328,-500.0,0.00030136,2]
[358983528,1745603447342,-500.0,0.00030136,2]
[358983529,1745603447356,-500.0,0.00030136,2]
[358983530,1745603447369,-500.0,0.00030136,2]
[358983531,1745603447383,-500.0,0.00030136,2]
[358983532,1745603447397,-500.0,0.00030136,2]
[358983533,1745603447412,-500.0,0.00030136,2]
[358983534,1745603447426,-500.0,0.00030136,2]
[358983535,1745603447440,-500.0,0.00030136,2]
[358983536,1745603447461,-500.0,0.00030136,2]
[358983537,1745603447476,-531.61760518,0.00030136,2]
[358983538,1745603447490,-500.0,0.00030136,2]
[358983539,1745603447504,-500.0,0.00030136,2]
[358983540,1745603447519,-500.0,0.00030136,2]
[358983541,1745603447533,-500.0,0.00030136,2]
[358983542,1745603447546,-780.66,0.00030136,2]
[358983543,1745603447556,-500.0,0.00030136,2]
[358983544,1745603447565,-639.67239413,0.00030136,2]
[358983545,1745603447575,-1027.65,0.00030136,2]
[358983546,1745603447584,-500.0,0.00030136,2]
[358983547,1745603447594,-500.0,0.00030136,2]
[358983548,1745603447603,-500.0,0.00030136,2]
[358983549,1745603447613,-500.0,0.00030136,2]
[358983550,1745603447623,-500.0,0.00030136,2]
[358983551,1745603447633,-500.0,0.00030136,2]
[358983552,1745603447643,-500.0,0.00030136,2]
[358983553,1745603447653,-500.0,0.00030136,2]
[358983554,1745603447662,-500.0,0.00030136,2]
[358983555,1745603447672,-793.02,0.00030136,2]
[358983556,1745603447682,-170.460722,0.00030136,2]
[358983557,1745603447692,-500.0,0.00030136,2]
[358983558,1745603447702,-500.0,0.00030136,2]
[358983559,1745603447712,-500.0,0.00030136,2]
[358983560,1745603447723,-500.0,0.00030136,2]
[358983561,1745603447734,-500.0,0.00030136,2]
[358983562,1745603447743,-912.18,0.00030136,2]
[358983563,1745603447753,-774.86,0.00030136,2]
[358983564,1745603447764,-500.0,0.00030136,2]
[358983565,1745603447774,-500.0,0.00030136,2]
[358983566,1745603448295,-449.89667667,0.00030136,2]
[358983567,1745603448314,-500.0,0.00030136,2]
[358983568,1745603448352,-500.0,0.00030136,2]
[358983569,1745603448376,-1282.07,0.00030136,2]
[358983570,1745603448386,-500.0,0.00030136,2]
[358983571,1745603448396,-674.11,0.00030136,2]
[358983572,1745603448406,-516.64610386,0.00030136,2]
[358983573,1745603448415,-500.0,0.00030136,2]
[358983574,1745603448425,-500.0,0.00030136,2]
[358983575,1745603448434,-926.46,0.00030136,2]
[358983576,1745603448443,-500.0,0.00030136,2]
[358983577,1745603448453,-500.0,0.00030136,2]
[358983578,1745603448462,-500.0,0.00030136,2]
[358983579,1745603448472,-500.0,0.00030136,2]
[358983580,1745603448481,-500.0,0.00030136,2]
[358983581,1745603448491,-500.0,0.00030136,2]
[358983582,1745603448500,-558.86434426,0.00030136,2]
[358983583,1745603448510,-500.0,0.00030136,2]
[358983584,1745603448520,-547.40449411,0.00030136,2]
[358983585,1745603448529,-500.0,0.00030136,2]
[358983586,1745603448539,-500.0,0.00030136,2]
[358983587,1745603448548,-500.0,0.00030136,2]
[358983588,1745603448557,-541.61796787,0.00030136,2]
[358983589,1745603448567,-500.0,0.00030136,2]
[358983590,1745603448577,-6145.83,0.00030136,2]
[358983591,1745603448586,-1112.89,0.00030136,2]
[358983592,1745603448597,-500.0,0.00030136,2]
[358983593,1745603448607,-500.0,0.00030136,2]
[358983594,1745603448617,-500.0,0.00030136,2]
[358983595,1745603448627,-514.81597838,0.00030136,2]
[358983596,1745603448636,-500.0,0.00030136,2]
[358983597,1745603448646,-500.0,0.00030136,2]
[358983598,1745603448656,-520.89491647,0.00030136,2]
[358983599,1745603448665,-516.35,0.00030136,2]
[358983600,1745603448675,-548.23729602,0.00030136,2]
[358983601,1745603448685,-500.0,0.00030136,2]
[358983602,1745603448696,-500.0,0.00030136,2]
[358983603,1745603448705,-500.0,0.00030136,2]
[358983604,1745603448715,-500.0,0.00030136,2]
[358983605,1745603448726,-603.36,0.00030136,2]
[358983606,1745603448736,-500.0,0.00030136,2]
[358983607,1745603448746,-500.0,0.00030136,2]
[358983608,1745603448755,-523.50803474,0.00030136,2]
[358983609,1745603448765,-500.0,0.00030136,2]
[358983610,1745603448775,-500.0,0.00030136,2]
[358983611,1745603448784,-500.0,0.00030136,2]
[358983612,1745603448793,-573.97,0.00030136,2]
[358983613,1745603448803,-500.0,0.00030136,2]
[358983614,1745603448812,-500.0,0.00030136,2]
[358983615,1745603448821,-500.0,0.00030136,2]
[358983616,1745603448831,-500.0,0.00030136,2]
[358983617,1745603448841,-500.0,0.00030136,2]
[358983618,1745603448849,-500.0,0.00030136,2]
[358983619,1745603448858,-500.0,0.00030136,2]
[358983620,1745603448867,-511.98272243,0.00030136,2]
[358983621,1745603448875,-500.0,0.00030136,2]
[358983622,1745603448884,-944.58,0.00030136,2]
[358983623,1745603448894,-517.28709193,0.00030136,2]
[358983624,1745603448904,-980.6,0.00030136,2]
[358983625,1745603448914,-1157.81,0.00030136,2]
[358983626,1745603448926,-500.0,0.00030136,2]
[358983627,1745603448936,-500.0,0.00030136,2]
[358983628,1745603448949,-530.12215077,0.00030136,2]
[358983629,1745603448958,-500.0,0.00030136,2]
[358983630,1745603448971,-510.22966709,0.00030136,2]
[358983631,1745603448981,-592.89,0.00030136,2]
[358983632,1745603448990,-518.27438816,0.00030136,2]
[358983633,1745603449004,-526.72028177,0.00030136,2]
[358983634,1745603449013,-500.0,0.00030136,2]
[358983635,1745603449022,-500.0,0.00030136,2]
[358983636,1745603449032,-500.0,0.00030136,2]
[358983637,1745603449042,-986.94,0.00030136,2]
[358983638,1745603449052,-500.0,0.00030136,2]
[358983639,1745603449062,-500.0,0.00030136,2]
[358983640,1745603449071,-500.0,0.00030136,2]
[358983641,1745603449080,-527.49348698,0.00030136,2]
[358983642,1745603449091,-1016.72,0.00030136,2]
[358983643,1745603449100,-500.0,0.00030136,2]
[358983644,1745603449111,-500.0,0.00030136,2]
[358983645,1745603449120,-514.64299442,0.00030136,2]
[358983646,1745603449131,-500.0,0.00030136,2]
[358983647,1745603449140,-500.0,0.00030136,2]
[358983648,1745603449150,-529.55287912,0.00030136,2]
[358983649,1745603449159,-511.62576367,0.00030136,2]
[358983650,1745603449169,-500.0,0.00030136,2]
[358983651,1745603449179,-500.0,0.00030136,2]
[358983652,1745603449188,-500.0,0.00030136,2]
[358983653,1745603449200,-539.25134629,0.00030136,2]
[358983654,1745603449209,-500.0,0.00030136,2]
[358983655,1745603449219,-500.0,0.00030136,2]
[358983656,1745603449228,-862.21,0.00030136,2]
[358983657,1745603449238,-500.0,0.00030136,2]
[358983658,1745603449248,-500.0,0.00030136,2]
[358983659,1745603449257,-500.0,0.00030136,2]
[358983660,1745603449267,-500.0,0.00030136,2]
[358983661,1745603449277,-613.66,0.00030136,2]
[358983662,1745603449286,-577.26,0.00030136,2]
[358983663,1745603449296,-721.73,0.00030136,2]
[358983664,1745603449306,-563.08164743,0.00030136,2]
[358983665,1745603449316,-500.0,0.00030136,2]
[358983666,1745603449326,-255.41304576,0.00030136,2]
[358983667,1745603449335,-500.0,0.00030136,2]
[358983668,1745603449345,-705.72,0.00030136,2]
[358983669,1745603449355,-1038.96,0.00030136,2]
[358983670,1745603449364,-500.0,0.00030136,2]
[358983671,1745603449373,-500.0,0.00030136,2]
[358983672,1745603449382,-567.29,0.00030136,2]
[358983673,1745603449392,-529.71838469,0.00030136,2]
[358983674,1745603449402,-814.55,0.00030136,2]
[358983675,1745603449411,-933.68,0.00030136,2]
[358983676,1745603449421,-500.0,0.00030136,2]
[358983677,1745603449430,-539.17723631,0.00030136,2]
[358983678,1745603449439,-701.5,0.00030136,2]
[358983679,1745603449451,-500.0,0.00030136,2]
[358983680,1745603449461,-747.28,0.00030136,2]
[358983681,1745603449470,-500.0,0.00030136,2]
[358983682,1745603449479,-751.09,0.00030136,2]
[358983683,1745603449489,-500.0,0.00030136,2]
[358983684,1745603449499,-500.0,0.00030136,2]
[358983685,1745603449508,-500.0,0.00030136,2]
[358983686,1745603449518,-233.47246789,0.00030136,2]
[358983687,1745603449528,-500.0,0.00030136,2]
[358983688,1745603449537,-163.47800284,0.00030136,2]
[358983689,1745603449547,-840.52,0.00030136,2]
[358983690,1745603449558,-547.7032108,0.00030136,2]
[358983691,1745603449567,-500.0,0.00030136,2]
[358983692,1745603449577,-961.07,0.00030136,2]
[358983693,1745603449586,-538.99,0.00030136,2]
[358983694,1745603449596,-500.0,0.00030136,2]
[358983695,1745603449605,-500.0,0.00030136,2]
[358983696,1745603449614,-700.14,0.00030136,2]
[358983697,1745603449624,-500.0,0.00030136,2]
[358983698,1745603449633,-690.67,0.00030136,2]
[358983699,1745603449642,-500.0,0.00030136,2]
[358983700,1745603449652,-500.0,0.00030136,2]
[358983701,1745603449662,-500.0,0.00030136,2]
[358983702,1745603449671,-884.19,0.00030136,2]
[358983703,1745603449680,-500.0,0.00030136,2]
[358983704,1745603449690,-500.0,0.00030136,2]
[358983705,1745603449702,-590.29,0.00030136,2]
[358983706,1745603449711,-774.29,0.00030136,2]
[358983707,1745603449721,-500.0,0.00030136,2]
[358983708,1745603449730,-732.84,0.00030136,2]
[358983709,1745603449740,-500.0,0.00030136,2]
[358983710,1745603449750,-500.0,0.00030136,2]
[358983711,1745603449761,-1047.26,0.00030136,2]
[358983712,1745603449771,-547.5,0.00030136,2]
[358983713,1745603449781,-501.02327287,0.00030136,2]
[358983714,1745603449791,-556.42657632,0.00030136,2]
[358983715,1745603449800,-828.97,0.00030136,2]
[358983716,1745603449810,-553.75286406,0.00030136,2]
[358983717,1745603449820,-762.23,0.00030136,2]
[358983718,1745603449829,-500.0,0.00030136,2]
[358983719,1745603449839,-500.0,0.00030136,2]
[358983720,1745603449849,-500.0,0.00030136,2]
[358983721,1745603449859,-500.0,0.00030136,2]
[358983722,1745603449869,-1101.5,0.00030136,2]
[358983723,1745603449878,-571.56,0.00030136,2]
[358983724,1745603449888,-500.0,0.00030136,2]
[358983725,1745603449899,-500.0,0.00030136,2]
[358983726,1745603449908,-500.0,0.00030136,2]
[358983727,1745603449918,-500.0,0.00030136,2]
[358983728,1745603449932,-500.0,0.00030136,2]
[358983729,1745603449942,-500.0,0.00030136,2]
[358983730,1745603449953,-500.0,0.00030136,2]
[358983731,1745603449963,-500.0,0.00030136,2]
[358983732,1745603449974,-502.86085126,0.00030136,2]
[358983733,1745603449983,-972.46,0.00030136,2]
[358983734,1745603449993,-500.0,0.00030136,2]
[358983735,1745603450004,-551.05,0.00030136,2]
[358983736,1745603450015,-879.53,0.00030136,2]
[358983737,1745603450024,-500.0,0.00030136,2]
[358983738,1745603450033,-500.0,0.00030136,2]
[358983739,1745603450043,-500.0,0.00030136,2]
[358983740,1745603450052,-500.0,0.00030136,2]
[358983741,1745603450061,-500.0,0.00030136,2]
[358983742,1745603450071,-500.0,0.00030136,2]
[358983743,1745603450080,-509.89299915,0.00030136,2]
[358983744,1745603450091,-500.0,0.00030136,2]
[358983745,1745603450100,-669.86,0.00030136,2]
[358983746,1745603450110,-500.0,0.00030136,2]
[358983747,1745603450119,-670.04,0.00030136,2]
[358983748,1745603450128,-670.04,0.00030136,2]
[358983749,1745603450138,-670.04,0.00030136,2]
[358983750,1745603450147,-670.04,0.00030136,2]
[358983751,1745603450157,-670.04,0.00030136,2]
[358983752,1745603450167,-711.71,0.00030136,2]
[358983753,1745603450176,-670.04,0.00030136,2]
[358983754,1745603450185,-500.0,0.00030136,2]
[358983755,1745603450195,-1050.2,0.00030136,2]
[358983756,1745603450205,-586.59,0.00030136,2]
[358983757,1745603450215,-500.0,0.00030136,2]
[358983758,1745603450225,-500.0,0.00030136,2]
[358983759,1745603450235,-500.0,0.00030136,2]
[358983760,1745603450245,-500.0,0.00030136,2]
[358983761,1745603450254,-500.0,0.00030136,2]
[358983762,1745603450264,-500.0,0.00030136,2]
[358983763,1745603450274,-500.0,0.00030136,2]
[358983764,1745603450283,-500.0,0.00030136,2]
[358983765,1745603450292,-523.49,0.00030136,2]
[358983766,1745603450302,-540.40466138,0.00030136,2]
[358983767,1745603450312,-500.0,0.00030136,2]
[358983768,1745603450321,-500.0,0.00030136,2]
[358983769,1745603450330,-500.0,0.00030136,2]
[358983770,1745603450340,-500.0,0.00030136,2]
[358983771,1745603450350,-500.0,0.00030136,2]
[358983772,1745603450359,-500.0,0.00030136,2]
[358983773,1745603450368,-500.0,0.00030136,2]
[358983774,1745603450377,-500.0,0.00030136,2]
[358983775,1745603450387,-500.0,0.00030136,2]
[358983776,1745603450397,-500.0,0.00030136,2]
[358983777,1745603450407,-500.0,0.00030136,2]
[358983778,1745603450416,-500.0,0.00030136,2]
[358983779,1745603450425,-815.53,0.00030136,2]
[358983780,1745603450434,-179.41990674,0.00030136,2]
[358983781,1745603450445,-500.0,0.00030136,2]
[358983782,1745603450455,-500.0,0.00030136,2]
[358983783,1745603450465,-500.0,0.00030136,2]
[358983784,1745603450474,-500.0,0.00030136,2]
[358983785,1745603450484,-500.0,0.00030136,2]
[358983786,1745603450493,-500.0,0.00030136,2]
[358983787,1745603450503,-500.0,0.00030136,2]
[358983788,1745603450512,-500.0,0.00030136,2]
[358983789,1745603450521,-500.0,0.00030136,2]
[358983790,1745603450531,-729.81,0.00030136,2]
[358983791,1745603450541,-500.0,0.00030136,2]
[358983792,1745603450550,-496.15403073,0.00030136,2]
[358983793,1745603450560,-602.39,0.00030136,2]
[358983794,1745603450569,-500.0,0.00030136,2]
[358983795,1745603450578,-500.0,0.00030136,2]
[358983796,1745603450589,-500.0,0.00030136,2]
[358983797,1745603450598,-500.0,0.00030136,2]
[358983798,1745603450608,-563.74704491,0.00030136,2]
[358983799,1745603450617,-500.0,0.00030136,2]
[358983800,1745603450627,-500.0,0.00030136,2]
[358983801,1745603450637,-1737.04,0.00030136,2]
[358983802,1745603450648,-1063.0,0.00030136,2]
[358983803,1745603450659,-968.87,0.00030136,2]
[358983804,1745603450669,-500.0,0.00030136,2]
[358983805,1745603450679,-526.42,0.00030136,2]
[358983806,1745603450689,-500.0,0.00030136,2]
[358983807,1745603450703,-597.02,0.00030136,2]
[358983808,1745603450712,-500.0,0.00030136,2]
[358983809,1745603450722,-500.0,0.00030136,2]
[358983810,1745603450731,-500.0,0.00030136,2]
[358983811,1745603450742,-500.0,0.00030136,2]
[358983812,1745603450752,-500.0,0.00030136,2]
[358983813,1745603450762,-740.13,0.00030136,2]
[358983814,1745603450772,-500.0,0.00030136,2]
[358983815,1745603450783,-505.85,0.00030136,2]
[358983816,1745603450792,-500.0,0.00030136,2]
[358983817,1745603450802,-898.13,0.00030136,2]
[358983818,1745603450813,-500.0,0.00030136,2]
[358983819,1745603450823,-209.21241495,0.00030136,2]
[358983820,1745603450832,-500.0,0.00030136,2]
[358983821,1745603450843,-500.0,0.00030136,2]
[358983822,1745603450852,-500.0,0.00030136,2]
[358983823,1745603450863,-500.0,0.00030136,2]
[358983824,1745603450873,-500.0,0.00030136,2]
[358983825,1745603450883,-500.0,0.00030136,2]
[358983826,1745603450892,-500.0,0.00030136,2]
[358983827,1745603450902,-1556.34,0.00030136,2]
[358983828,1745603450912,-500.0,0.00030136,2]
[358983829,1745603450925,-500.0,0.00030136,2]
[358983830,1745603450936,-500.0,0.00030136,2]
[358983831,1745603450947,-1426.31,0.00030136,2]
[358983832,1745603450956,-1236.29,0.00030136,2]
[358983833,1745603450967,-500.0,0.00030136,2]
[358983834,1745603450976,-576.87411685,0.00030136,2]
[358983835,1745603450986,-1090.7,0.00030136,2]
[358983836,1745603450996,-603.47917906,0.00030136,2]
[358983837,1745603451006,-508.03871539,0.00030136,2]
[358983838,1745603451016,-500.0,0.00030136,2]
[358983839,1745603451026,-500.0,0.00030136,2]
[358983840,1745603451036,-500.0,0.00030136,2]
[358983841,1745603451046,-500.0,0.00030136,2]
[358983842,1745603451056,-1373.27,0.00030136,2]
[358983843,1745603451065,-760.4,0.00030136,2]
[358983844,1745603451075,-500.0,0.00030136,2]
[358983845,1745603451085,-500.0,0.00030136,2]
[358983846,1745603451095,-500.0,0.00030136,2]
[358983847,1745603451104,-687.05,0.00030136,2]
[358983848,1745603451114,-500.0,0.00030136,2]
[358983849,1745603451123,-500.0,0.00030136,2]
[358983850,1745603451133,-500.0,0.00030136,2]
[358983851,1745603451143,-500.0,0.00030136,2]
[358983852,1745603451153,-500.0,0.00030136,2]
[358983853,1745603451163,-567.68,0.00030136,2]
[358983854,1745603451173,-513.8119682,0.00030136,2]
[358983855,1745603451185,-500.0,0.00030136,2]
[358983856,1745603451196,-500.0,0.00030136,2]
[358983857,1745603451206,-500.0,0.00030136,2]
[358983858,1745603451216,-573.51,0.00030136,2]
[358983859,1745603451225,-500.0,0.00030136,2]
[358983860,1745603451235,-865.45,0.00030136,2]
[358983861,1745603451245,-500.0,0.00030136,2]
[358983862,1745603451255,-800.19,0.00030136,2]
[358983863,1745603451264,-500.0,0.00030136,2]
[358983864,1745603451274,-915.13,0.00030136,2]
[358983865,1745603451284,-500.0,0.00030136,2]
[358983866,1745603451293,-498.02399997,0.00030136,2]
[358983867,1745603451303,-500.0,0.00030136,2]
[358983868,1745603451312,-2451.9,0.00030136,2]
[358983869,1745603451322,-500.0,0.00030136,2]
[358983870,1745603451332,-529.21511513,0.00030136,2]
[358983871,1745603451342,-920.4,0.00030136,2]
[358983872,1745603451351,-500.0,0.00030136,2]
[358983873,1745603451361,-517.20263337,0.00030136,2]
[358983874,1745603451370,-500.0,0.00030136,2]
[358983875,1745603451380,-500.0,0.00030136,2]
[358983876,1745603451390,-500.0,0.00030136,2]
[358983877,1745603451399,-500.0,0.00030136,2]
[358983878,1745603451409,-1827.59,0.00030136,2]
[358983879,1745603451418,-500.0,0.00030136,2]
[358983880,1745603451429,-500.0,0.00030136,2]
[358983881,1745603451439,-500.0,0.00030136,2]
[358983882,1745603451449,-1816.76,0.00030136,2]
[358983883,1745603451458,-996.53,0.00030136,2]
[358983884,1745603451467,-500.0,0.00030136,2]
[358983885,1745603451477,-1041.97,0.00030136,2]
[358983886,1745603451487,-500.0,0.00030136,2]
[358983887,1745603451497,-500.0,0.00030136,2]
[358983888,1745603451506,-718.69,0.00030136,2]
[358983889,1745603451516,-500.0,0.00030136,2]
[358983890,1745603451765,-500.0,0.00030136,2]
[358983891,1745603451797,-343.80884306,0.00030136,2]
[358983892,1745603451807,-500.0,0.00030136,2]
[358983893,1745603451816,-500.0,0.00030136,2]
[358983894,1745603451826,-563.92463906,0.00030136,2]
[358983895,1745603451835,-500.0,0.00030136,2]
[358983896,1745603451845,-609.77,0.00030136,2]
[358983897,1745603451855,-500.0,0.00030136,2]
[358983898,1745603451865,-500.0,0.00030136,2]
[358983899,1745603451875,-500.0,0.00030136,2]
[358983900,1745603451885,-538.38,0.00030136,2]
[358983901,1745603451894,-848.28,0.00030136,2]
[358983902,1745603451904,-500.0,0.00030136,2]
[358983903,1745603451914,-500.0,0.00030136,2]
[358983904,1745603451928,-464.99698593,0.00030136,2]
[358983905,1745603451937,-521.17978049,0.00030136,2]
[358983906,1745603451948,-500.0,0.00030136,2]
[358983907,1745603451958,-500.0,0.00030136,2]
[358983908,1745603451970,-500.0,0.00030136,2]
[358983909,1745603451987,-500.0,0.00030136,2]
[358983910,1745603451999,-949.54,0.00030136,2]
[358983911,1745603452009,-500.0,0.00030136,2]
[358983912,1745603452020,-934.76,0.00030136,2]
[358983913,1745603452031,-513.16018856,0.00030136,2]
[358983914,1745603452042,-517.92402145,0.00030136,2]
[358983915,1745603452053,-500.0,0.00030136,2]
[358983916,1745603452065,-500.0,0.00030136,2]
[358983917,1745603452076,-500.0,0.00030136,2]
[358983918,1745603452087,-500.0,0.00030136,2]
[358983919,1745603452099,-500.0,0.00030136,2]
[358983920,1745603452110,-731.33,0.00030136,2]
[358983921,1745603452121,-594.93603749,0.00030136,2]
[358983922,1745603452133,-500.0,0.00030136,2]
[358983923,1745603452144,-500.0,0.00030136,2]
[358983924,1745603452154,-531.63,0.00030136,2]
[358983925,1745603452165,-500.0,0.00030136,2]
[358983926,1745603452175,-500.0,0.00030136,2]
[358983927,1745603452185,-500.0,0.00030136,2]
[358983928,1745603452199,-500.0,0.00030136,2]
[358983929,1745603452209,-500.0,0.00030136,2]
[358983930,1745603452219,-2486.31,0.00030136,2]
[358983931,1745603452230,-500.0,0.00030136,2]
[358983932,1745603452240,-708.89,0.00030136,2]
[358983933,1745603452251,-500.0,0.00030136,2]
[358983934,1745603452262,-500.0,0.00030136,2]
[358983935,1745603452272,-1048.37,0.00030136,2]
[358983936,1745603452283,-500.0,0.00030136,2]
[358983937,1745603452293,-500.0,0.00030136,2]
[358983938,1745603452304,-500.0,0.00030136,2]
[358983939,1745603452315,-999.81,0.00030136,2]
[358983940,1745603452325,-500.0,0.00030136,2]
[358983941,1745603452336,-515.10608183,0.00030136,2]
[358983942,1745603452346,-505.02,0.00030136,2]
[358983943,1745603452358,-500.0,0.00030136,2]
[358983944,1745603452368,-500.0,0.00030136,2]
[358983945,1745603452379,-525.67,0.00030136,2]
[358983946,1745603452389,-624.44,0.00030136,2]
[358983947,1745603452399,-500.0,0.00030136,2]
[358983948,1745603452416,-500.0,0.00030136,2]
[358983949,1745603452428,-500.0,0.00030136,2]
[358983950,1745603452438,-514.31014724,0.00030136,2]
[358983951,1745603452449,-500.0,0.00030136,2]
[358983952,1745603452459,-500.0,0.00030136,2]
[358983953,1745603452469,-811.35,0.00030136,2]
[358983954,1745603452479,-755.03,0.00030136,2]
[358983955,1745603452490,-500.0,0.00030136,2]
[358983956,1745603452500,-500.0,0.00030136,2]
[358983957,1745603452510,-500.0,0.00030136,2]
[358983958,1745603452520,-500.0,0.00030136,2]
[358983959,1745603452530,-500.0,0.00030136,2]
[358983960,1745603452540,-876.93,0.00030136,2]
[358983961,1745603452551,-523.14,0.00030136,2]
[358983962,1745603452561,-510.79,0.00030136,2]
[358983963,1745603452572,-500.0,0.00030136,2]
[358983964,1745603452582,-500.0,0.00030136,2]
[358983965,1745603452592,-652.77,0.00030136,2]
[358983966,1745603452602,-500.0,0.00030136,2]
[358983967,1745603452612,-500.0,0.00030136,2]
[358983968,1745603452622,-570.55300334,0.00030136,2]
[358983969,1745603452633,-500.0,0.00030136,2]
[358983970,1745603452642,-500.0,0.00030136,2]
[358983971,1745603452652,-500.0,0.00030136,2]
[358983972,1745603452662,-929.32,0.00030136,2]
[358983973,1745603452673,-531.43149761,0.00030136,2]
[358983974,1745603452683,-500.0,0.00030136,2]
[358983975,1745603452692,-1039.05,0.00030136,2]
[358983976,1745603452705,-500.0,0.00030136,2]
[358983977,1745603452715,-500.0,0.00030136,2]
[358983978,1745603452725,-678.39,0.00030136,2]
[358983979,1745603452734,-530.27331446,0.00030136,2]
[358983980,1745603452744,-500.0,0.00030136,2]
[358983981,1745603452754,-575.0,0.00030136,2]
[358983982,1745603452764,-500.0,0.00030136,2]
[358983983,1745603452774,-500.0,0.00030136,2]
[358983984,1745603452785,-500.0,0.00030136,2]
[358983985,1745603452795,-500.0,0.00030136,2]
[358983986,1745603452804,-500.0,0.00030136,2]
[358983987,1745603452814,-500.0,0.00030136,2]
[358983988,1745603452825,-500.0,0.00030136,2]
[358983989,1745603452834,-500.0,0.00030136,2]
[358983990,1745603452850,-500.0,0.00030136,2]
[358983991,1745603452860,-543.64,0.00030136,2]